Workbook

Sheet Summary and Sensitivity
B3: Deposit Growth | C3: =Deposit_Growth -> 0.15
B4: Loan to Deposits | C4: =Loans_to_Deposits -> 0.69
B6: Target Debt to Assets | C6: =Target_Cap_Adequacy -> 0.18
B7: Interest Rate on Loans | C7: =Interest_Rate___Loans -> 0.14
B8: Interest Rate on Deposits | C8: =Interest_Deposits -> 0.03
B10: Loan Loss Provisions | C10: =Loan_Loss_Percent_of_Loans -> 0.03
B12: Regression A Factor | C12: =E12 -> 0.1157 | D12: 0.295 | E12: 0.1157
B13: Regression B Factor | C13: =E13 -> 12.196 | D13: 13.102 | E13: 12.196
B15: Share Value - MB Regression | C15: =Completed!F183 -> 332.4851113
B17: P/E Ratio | C17: 13.14
B19: Share Value - P/E | C19: =Completed!F194 -> 321.5660933

Sheet Completed
A4: Historic Balance Sheet
B5: Opening Balance Sheet
C6: Cash | D6: 210121
C7: Loans | D7: 143872 | I7: FALSE
C8: Investement Securities | D8: =92532+39136 -> 131668
C9: Fixed Assets | D9: 15720
C10: Total | D10: =SUM(D6:D9) -> 501381
C12: Deposits | D12: 392928
C13: Other Borrowing | D13: =12906+19347 -> 32253
C14: Equity | D14: 76200
C15: Total | D15: =SUM(D12:D14) -> 501381
C17: Number of Shares | D17: 1000
C18: Contingent Liabilities | D18: 0
B20: Capital Adequacy
C21: Equity Capital | D21: =D14 -> 76200
C22: Loans | D22: =D7 -> 143872
C23: Fixed Assets | D23: =D9 -> 15720
C24: Contengent Liabilites | D24: =D18 -> 0
C25: Total | D25: =D22+D23+D24 -> 159592
C27: Cap Adequacy | D27: =D21/D25 -> 0.4774675422
A29: Assumptions
B30: Deposit Growth | D30: =M30/100 -> 0.15 | M30: 15
C31: Cash to Deposits | D31: =D6/D12 -> 0.5347570038 | E31: 0.3
C32: Loans to Deposits | D32: =M32/100 -> 0.69 | M32: 69
C33: Fixed Asset Growth | D33: 0.03
C34: Coningent Liabilities to Loans | D34: =D24/D7 -> 0
B36: Interest Rates
C37: Interest Rate - Loans | D37: =M37/100 -> 0.14 | M37: 14
C38: Interest Deposits | D38: =M38/100 -> 0.03 | M38: 3
C39: Interest Rate - Other Investment | D39: 0.1
C40: Interest Rate - Borrowings | D40: 0.11
C42: NII- Non Interest Income
C43: Percent of Contingent Liabilities | D43: 0.015
C44: Loan Loss Percent of Loans | D44: =M44/100 -> 0.03 | M44: 3
C45: Other Expense as Pct of Total Assets | D45: 0.01
B47: Financing and Other Assumptions
C48: Target Cap Adequacy | D48: =M48/100 -> 0.18 | M48: 18
C49: Dividend Payout | D49: 0.25
C50: Tax Rate | D50: 0.3
A52: Working Analysis | D52: Driver | E52: Parameter | F52: Bal Sheet | G52: Projection | H52: Projection | I52: Projection | J52: Projection | K52: Projection | L52: Projection
B53: Asset Balances
C54: Deposit Balance | D54: Deposit Growth --------> | E54: =Deposit_Growth -> 0.15 | F54: =D12 -> 392928 | G54: =F54*(1+Deposit_Growth) -> 451867.2 | H54: 519647.28 | I54: 597594.372 | J54: 687233.5278 | K54: 790318.557 | L54: 908866.3405
C55: Increase in Deposit | D55: Change | G55: =G54-F54 -> 58939.2 | H55: 67780.08 | I55: 77947.092 | J55: 89639.1558 | K55: 103085.0292 | L55: 118547.7835
C57: Cash | D57: Cash/Deposits ---------> | E57: =E31 -> 0.3 | F57: =F54*Cash_to_Deposits -> 210121 | G57: =G54*$E$31 -> 135560.16 | H57: 155894.184 | I57: 179278.3116 | J57: 206170.0583 | K57: 237095.5671 | L57: 272659.9022
C58: Increase in Cash (WC) | D58: Change | G58: =G57-F57 -> -74560.84 | H58: 20334.024 | I58: 23384.1276 | J58: 26891.74674 | K58: 30925.50875 | L58: 35564.33506
C60: Loans | D60: Loans to Deposits -----> | E60: =Loans_to_Deposits -> 0.69 | F60: =D22 -> 143872 | G60: =G54*Loans_to_Deposits -> 311788.368 | H60: 358556.6232 | I60: 412340.1167 | J60: 474191.1342 | K60: 545319.8043 | L60: 627117.775
C61: Increase in Loans | D61: Change | G61: =G60-F60 -> 167916.368 | H61: 46768.2552 | I61: 53783.49348 | J61: 61851.0175 | K61: 71128.67013 | L61: 81797.97065
C63: Fixed Assets | D63: Fixed Asset Growth ---> | E63: =Fixed_Asset -> 0.03 | F63: =D9 -> 15720 | G63: =F63*(1+Fixed_Asset) -> 16191.6 | H63: 16677.348 | I63: 17177.66844 | J63: 17692.99849 | K63: 18223.78845 | L63: 18770.5021
C64: Increase in Fixed Assets | D64: Change | G64: =G63-F63 -> 471.6 | H64: 485.748 | I64: 500.32044 | J64: 515.3300532 | K64: 530.7899548 | L64: 546.7136534
C65: Contingent Liabilities (Capital Adequacy) | D65: CL to Loans -----------> | E65: =CL_to_Loans -> 0 | F65: =F60*CL_to_Loans -> 0 | G65: 0 | H65: 0 | I65: 0 | J65: 0 | K65: 0 | L65: 0
B67: Income and Expenses
C68: Loan Income | D68: Int Rate Loans --------> | E68: =Interest_Rate___Loans -> 0.14 | G68: =AVERAGE(G60,F60)*Interest_Rate___Loans -> 31896.22576 | H68: 46924.14938 | I68: 53962.77179 | J68: 62057.18756 | K68: 71365.76569 | L68: 82070.63055
C69: Deposit Cost | D69: Int Rate Deposits -----> | E69: =Interest_Deposits -> 0.03 | G69: =AVERAGE(G54,F54)*Interest_Deposits -> 12671.928 | H69: 14572.7172 | I69: 16758.62478 | J69: 19272.4185 | K69: 22163.28127 | L69: 25487.77346
C70: Non Interest Income | D70: NII Rate ----------------> | E70: =Percent_of_CL -> 0.015 | G70: =AVERAGE(G65,F65)*Percent_of_CL -> 0 | H70: 0 | I70: 0 | J70: 0 | K70: 0 | L70: 0
C71: Loan Losses | D71: Loan Losses ----------> | E71: =Loan_Loss_Percent_of_Loans -> 0.03 | G71: =AVERAGE(G60,F60)*Loan_Loss_Percent_of_Loans -> 6834.90552 | H71: 10055.17487 | I71: 11563.4511 | J71: 13297.96876 | K71: 15292.66408 | L71: 17586.56369
C72: Other Expense | D72: Other Pct --------------> | E72: =Other_Expense_as_Pct_of_Total_Assets -> 0.01 | G72: =AVERAGE(G60,F60)*Other_Expense_as_Pct_of_Total_Assets -> 2278.30184 | H72: 3351.724956 | I72: 3854.483699 | J72: 4432.656254 | K72: 5097.554692 | L72: 5862.187896
A74: Other Investments Less Cash which is the Cash Flow Plug
C75: Opening Balance | G75: =F77 -> 99415 | H75: 94352.3385 | I75: 119478.1203 | J75: 148431.0592 | K75: 181786.9773 | L75: 220208.1227
C76: Add: Cash Flow from Cash Flow Statement Below | D76: Last line in CF | G76: =G131 -> -5062.661504 | H76: =H131 -> 25125.78181 | I76: 28952.93885 | J76: 33355.91813 | K76: 38421.14545 | L76: 44248.01206
C77: Closing Balance | F77: =F137-F142 -> 99415 | G77: =G75+G76 -> 94352.3385 | H77: =H75+H76 -> 119478.1203 | I77: 148431.0592 | J77: 181786.9773 | K77: 220208.1227 | L77: 264456.1348
C79: Temporary Securities | D79: Use MAX(Bal;0) | F79: =F137 -> 131668 | G79: =MAX(G77,0) -> 94352.3385 | H79: 119478.1203 | I79: 148431.0592 | J79: 181786.9773 | K79: 220208.1227 | L79: 264456.1348
C80: Average Level of Temporary Securities for Interest Income | G80: =AVERAGE(F79:G79) -> 113010.1692 | H80: =AVERAGE(G79:H79) -> 106915.2294 | I80: 133954.5897 | J80: 165109.0182 | K80: 200997.55 | L80: 242332.1288
C81: Interest Income Rate on Other Investments | G81: =Interest_Rate___Other_Investment -> 0.1 | H81: 0.1 | I81: 0.1 | J81: 0.1 | K81: 0.1 | L81: 0.1
C82: Int Income on Other Investmetns | G82: =AVERAGE(G79,F79)*Interest_Rate___Other_Investment -> 11301.01692 | H82: 10691.52294 | I82: 13395.45897 | J82: 16510.90182 | K82: 20099.755 | L82: 24233.21288
C84: Other Borrowings | F84: =F142 -> 32253 | G84: =MAX(-G77,0) -> 0 | H84: 0 | I84: 0 | J84: 0 | K84: 0 | L84: 0
C85: Interest Expense Rate | G85: =Interest_Rate___Borrowings -> 0.11 | H85: 0.11 | I85: 0.11 | J85: 0.11 | K85: 0.11 | L85: 0.11
C86: Int Expense on Other Borrowings | G86: =AVERAGE(G84,F84)*Interest_Rate___Borrowings -> 1773.915 | H86: 0 | I86: 0 | J86: 0 | K86: 0 | L86: 0
B88: Equity Balance
C89: Opening Balance | G89: =F93 -> 76200 | H89: 99190.36098 | I89: 114068.9151 | J89: 131179.2524 | K89: 150856.1402 | L89: 173484.5613
C90: Add: Net Income | G90: =G113 -> 13746.73463 | H90: 20745.23871 | I90: 24627.16983 | J90: 29095.53211 | K90: 34238.41446 | L90: 40157.12286
C91: Less: Dividends | G91: =G127 -> 3436.683657 | H91: 5186.309678 | I91: 6156.792458 | J91: 7273.883027 | K91: 8559.603614 | L91: 10039.28072
C92: Add: New Issues | G92: =G126 -> 12680.31001 | H92: -680.3748863 | I92: -1360.040105 | J92: -2144.761222 | K92: -3050.389806 | L92: -4095.157955
C93: Closing Balance | F93: =D14 -> 76200 | G93: =G89+G90-G91+G92 -> 99190.36098 | H93: 114068.9151 | I93: 131179.2524 | J93: 150856.1402 | K93: 173484.5613 | L93: 199507.2455
A95: Net Loan Balance
B96: Opening Balance | G96: =F99 -> 143872 | H96: =G99 -> 304953.4625 | I96: 341666.5428 | J96: 383886.5852 | K96: 432439.6339 | L96: 488275.64
B97: Add: New Loans | G97: =G61 -> 167916.368 | H97: 46768.2552 | I97: 53783.49348 | J97: 61851.0175 | K97: 71128.67013 | L97: 81797.97065
B98: Less: Loan Provisions | G98: =G71 -> 6834.90552 | H98: 10055.17487 | I98: 11563.4511 | J98: 13297.96876 | K98: 15292.66408 | L98: 17586.56369
B99: Closing Balance | F99: =F60 -> 143872 | G99: =G96+G97-G98 -> 304953.4625 | H99: =H96+H97-H98 -> 341666.5428 | I99: 383886.5852 | J99: 432439.6339 | K99: 488275.64 | L99: 552487.0469
A101: Income Statement
B102: Interest Income - Loans | G102: =G68 -> 31896.22576 | H102: 46924.14938 | I102: 53962.77179 | J102: 62057.18756 | K102: 71365.76569 | L102: 82070.63055
B103: Interest Payments on Deposits | G103: 12671.928 | H103: 14572.7172 | I103: 16758.62478 | J103: 19272.4185 | K103: 22163.28127 | L103: 25487.77346
C104: Net Interest Margin | G104: =G102-G103 -> 19224.29776 | H104: =H102-H103 -> 32351.43218 | I104: 37204.14701 | J104: 42784.76906 | K104: 49202.48442 | L104: 56582.85709
B105: Plus: Fee Income | G105: =G70 -> 0 | H105: 0 | I105: 0 | J105: 0 | K105: 0 | L105: 0
B106: Less: Loan Loss Provisions | G106: 6834.90552 | H106: 10055.17487 | I106: 11563.4511 | J106: 13297.96876 | K106: 15292.66408 | L106: 17586.56369
B107: Less: Operating Expenses | G107: 2278.30184 | H107: 3351.724956 | I107: 3854.483699 | J107: 4432.656254 | K107: 5097.554692 | L107: 5862.187896
C108: Net | G108: =G104+G105-G106-G107 -> 10111.0904 | H108: =H104+H105-H106-H107 -> 18944.53236 | I108: 21786.21221 | J108: 25054.14405 | K108: 28812.26565 | L108: 33134.1055
B109: Interest Income - Investment Securities | G109: =G82 -> 11301.01692 | H109: 10691.52294 | I109: 13395.45897 | J109: 16510.90182 | K109: 20099.755 | L109: 24233.21288
B110: Interest Payments on Other Borrowings | G110: =G86 -> 1773.915 | H110: =H86 -> 0 | I110: 0 | J110: 0 | K110: 0 | L110: 0
C111: EBT | G111: =G108+G109-G110 -> 19638.19232 | H111: =H108+H109-H110 -> 29636.0553 | I111: 35181.67119 | J111: 41565.04587 | K111: 48912.02065 | L111: 57367.31838
B112: Taxes | E112: =Tax_Rate -> 0.3 | G112: =G111*$E$112 -> 5891.457697 | H112: =H111*$E$112 -> 8890.81659 | I112: 10554.50136 | J112: 12469.51376 | K112: 14673.6062 | L112: 17210.19551
C113: Earnings | G113: =G111-G112 -> 13746.73463 | H113: 20745.23871 | I113: 24627.16983 | J113: 29095.53211 | K113: 34238.41446 | L113: 40157.12286
C115: Net Earnings Before Other Interest | G115: =G108 -> 10111.0904 | H115: =H108 -> 18944.53236 | I115: 21786.21221 | J115: 25054.14405 | K115: 28812.26565 | L115: 33134.1055 | M115: 0 | N115: 0 | O115: 0 | P115: 0 | Q115: 0 | R115: 0 | S115: 0 | T115: 0 | U115: 0 | V115: 0 | W115: 0 | X115: 0 | Y115: 0 | Z115: 0 | AA115: 0 | AB115: 0 | AC115: 0 | AD115: 0 | AE115: 0 | AF115: 0 | AG115: 0 | AH115: 0 | AI115: 0 | AJ115: 0 | AK115: 0 | AL115: 0 | AM115: 0 | AN115: 0 | AO115: 0 | AP115: 0 | AQ115: 0 | AR115: 0 | AS115: 0 | AT115: 0 | AU115: 0 | AV115: 0 | AW115: 0 | AX115: 0 | AY115: 0 | AZ115: 0 | BA115: 0 | BB115: 0 | BC115: 0 | BD115: 0 | BE115: 0 | BF115: 0 | BG115: 0 | BH115: 0 | BI115: 0 | BJ115: 0 | BK115: 0 | BL115: 0 | BM115: 0 | BN115: 0 | BO115: 0 | BP115: 0 | BQ115: 0 | BR115: 0 | BS115: 0 | BT115: =BT108 -> 0 | BU115: 0 | BV115: 0 | BW115: 0 | BX115: 0 | BY115: 0 | BZ115: 0 | CA115: 0 | CB115: 0 | CC115: 0 | CD115: 0 | CE115: 0 | CF115: 0 | CG115: 0 | CH115: 0 | CI115: 0 | CJ115: 0 | CK115: 0 | CL115: 0 | CM115: 0 | CN115: 0 | CO115: 0 | CP115: 0 | CQ115: 0 | CR115: 0 | CS115: 0 | CT115: 0 | CU115: 0 | CV115: 0 | CW115: 0 | CX115: 0 | CY115: 0 | CZ115: 0 | DA115: 0 | DB115: 0 | DC115: 0 | DD115: 0 | DE115: 0 | DF115: 0 | DG115: 0 | DH115: 0 | DI115: 0 | DJ115: 0 | DK115: 0 | DL115: 0 | DM115: 0 | DN115: 0 | DO115: 0 | DP115: 0 | DQ115: 0 | DR115: 0 | DS115: 0 | DT115: 0 | DU115: 0 | DV115: 0 | DW115: 0 | DX115: 0 | DY115: 0 | DZ115: 0 | EA115: 0 | EB115: 0 | EC115: 0 | ED115: 0 | EE115: 0 | EF115: =EF108 -> 0 | EG115: 0 | EH115: 0 | EI115: 0 | EJ115: 0 | EK115: 0 | EL115: 0 | EM115: 0 | EN115: 0 | EO115: 0 | EP115: 0 | EQ115: 0 | ER115: 0 | ES115: 0 | ET115: 0 | EU115: 0 | EV115: 0 | EW115: 0 | EX115: 0 | EY115: 0 | EZ115: 0 | FA115: 0 | FB115: 0 | FC115: 0 | FD115: 0 | FE115: 0 | FF115: 0 | FG115: 0 | FH115: 0 | FI115: 0 | FJ115: 0 | FK115: 0 | FL115: 0 | FM115: 0 | FN115: 0 | FO115: 0 | FP115: 0 | FQ115: 0 | FR115: 0 | FS115: 0 | FT115: 0 | FU115: 0 | FV115: 0 | FW115: 0 | FX115: 0 | FY115: 0 | FZ115: 0 | GA115: 0 | GB115: 0 | GC115: 0 | GD115: 0 | GE115: 0 | GF115: 0 | GG115: 0 | GH115: 0 | GI115: 0 | GJ115: 0 | GK115: 0 | GL115: 0 | GM115: 0 | GN115: 0 | GO115: 0 | GP115: 0 | GQ115: 0 | GR115: =GR108 -> 0 | GS115: 0 | GT115: 0 | GU115: 0 | GV115: 0 | GW115: 0 | GX115: 0 | GY115: 0 | GZ115: 0 | HA115: 0 | HB115: 0 | HC115: 0 | HD115: 0 | HE115: 0 | HF115: 0 | HG115: 0 | HH115: 0 | HI115: 0 | HJ115: 0 | HK115: 0 | HL115: 0 | HM115: 0 | HN115: 0 | HO115: 0 | HP115: 0 | HQ115: 0 | HR115: 0 | HS115: 0 | HT115: 0 | HU115: 0 | HV115: 0 | HW115: 0 | HX115: 0 | HY115: 0 | HZ115: 0 | IA115: 0 | IB115: 0 | IC115: 0 | ID115: 0 | IE115: 0 | IF115: 0 | IG115: 0 | IH115: 0 | II115: 0 | IJ115: 0 | IK115: 0 | IL115: 0 | IM115: 0 | IN115: 0 | IO115: 0 | IP115: 0 | IQ115: 0 | IR115: 0 | IS115: 0 | IT115: 0 | IU115: 0 | IV115: 0
A117: Cash Flow Statement
B118: Earnings | G118: =G113 -> 13746.73463 | H118: 20745.23871 | I118: 24627.16983 | J118: 29095.53211 | K118: 34238.41446 | L118: 40157.12286
B119: Add: Loan Loss Provisions | G119: =G106 -> 6834.90552 | H119: =H106 -> 10055.17487 | I119: 11563.4511 | J119: 13297.96876 | K119: 15292.66408 | L119: 17586.56369
B120: Less: WC Changes | G120: =G58 -> -74560.84 | H120: 20334.024 | I120: 23384.1276 | J120: 26891.74674 | K120: 30925.50875 | L120: 35564.33506
C121: Cash from Operations | G121: =G118-G120+G119 -> 95142.48015 | H121: =H118-H120+H119 -> 10466.38958 | I121: 12806.49333 | J121: 15501.75413 | K121: 18605.56978 | L121: 22179.35149
B122: Less: Increases in Loans | G122: =G61 -> 167916.368 | H122: 46768.2552 | I122: 53783.49348 | J122: 61851.0175 | K122: 71128.67013 | L122: 81797.97065
B123: Less: Increases in Plant | G123: =G64 -> 471.6 | H123: 485.748 | I123: 500.32044 | J123: 515.3300532 | K123: 530.7899548 | L123: 546.7136534
C124: Cash before Financing | G124: =G121-G122-G123 -> -73245.48785 | H124: -36787.61362 | I124: -41477.32059 | J124: -46864.59342 | K124: -53053.8903 | L124: -60165.33281
B125: Add: Inceases in Deposits | G125: =G55 -> 58939.2 | H125: 67780.08 | I125: 77947.092 | J125: 89639.1558 | K125: 103085.0292 | L125: 118547.7835
B126: Add: New Equity Issues | G126: =G156 -> 12680.31001 | H126: =H156 -> -680.3748863 | I126: -1360.040105 | J126: -2144.761222 | K126: -3050.389806 | L126: -4095.157955
B127: Less: Dividends | E127: =Dividend_Payout -> 0.25 | G127: =MAX(G118*Dividend_Payout,0) -> 3436.683657 | H127: 5186.309678 | I127: 6156.792458 | J127: 7273.883027 | K127: 8559.603614 | L127: 10039.28072
C128: Net Cash Flow | G128: =G124+G125+G126-G127 -> -5062.661504 | H128: =H124+H125+H126-H127 -> 25125.78181 | I128: =I124+I125+I126-I127 -> 28952.93885 | J128: 33355.91813 | K128: 38421.14545 | L128: 44248.01206
C130: Other Cash Flow Inreases | G130: =G119-G120-G122-G123+G125 -> -28053.02248 | H130: =H119-H120-H122-H123+H125 -> 10247.22767 | I130: 11842.60158 | J130: 13679.03027 | K130: 15792.72441 | L130: 18225.32787
C131: Cash Flow from Function | G131: =cash_flow(G108,$E$112,G130,$E$127,G146,G147,G151,F77,F79,F84,G81,Interest_Rate___Borrowings,G89) -> -5062.661504 | H131: 25125.78181 | I131: 28952.93885 | J131: 33355.91813 | K131: 38421.14545 | L131: 44248.01206
C132: Difference from Circular Function | G132: =G131-G128 -> -1.455191523e-11 | H132: =H131-H128 -> -3.274180926e-11 | I132: -2.910383046e-11 | J132: -7.275957614e-11 | K132: 0 | L132: -8.731149137e-11
A134: Balance Sheet
C135: Cash | F135: =D6 -> 210121 | G135: =G57 -> 135560.16 | H135: 155894.184 | I135: 179278.3116 | J135: 206170.0583 | K135: 237095.5671 | L135: 272659.9022
C136: Loans | F136: =D7 -> 143872 | G136: =G99 -> 304953.4625 | H136: 341666.5428 | I136: 383886.5852 | J136: 432439.6339 | K136: 488275.64 | L136: 552487.0469
C137: Temporary Secruities | F137: =D8 -> 131668 | G137: =G79 -> 94352.3385 | H137: 119478.1203 | I137: 148431.0592 | J137: 181786.9773 | K137: 220208.1227 | L137: 264456.1348
C138: Fixed Assets | F138: =D9 -> 15720 | G138: =G63 -> 16191.6 | H138: 16677.348 | I138: 17177.66844 | J138: 17692.99849 | K138: 18223.78845 | L138: 18770.5021
C139: Total | F139: =D10 -> 501381 | G139: =SUM(G135:G138) -> 551057.561 | H139: 633716.1951 | I139: 728773.6244 | J139: 838089.668 | K139: 963803.1183 | L139: 1108373.586
C141: Deposits | F141: =D12 -> 392928 | G141: =G54 -> 451867.2 | H141: 519647.28 | I141: 597594.372 | J141: 687233.5278 | K141: 790318.557 | L141: 908866.3405
C142: Other Borrowing | F142: =D13 -> 32253 | G142: =G84 -> 0 | H142: 0 | I142: 0 | J142: 0 | K142: 0 | L142: 0
C143: Equity | F143: =D14 -> 76200 | G143: =G93 -> 99190.36098 | H143: 114068.9151 | I143: 131179.2524 | J143: 150856.1402 | K143: 173484.5613 | L143: 199507.2455
C144: Total | F144: =D15 -> 501381 | G144: =SUM(G141:G143) -> 551057.561 | H144: 633716.1951 | I144: 728773.6244 | J144: 838089.668 | K144: 963803.1183 | L144: 1108373.586
C146: Other Assets | F146: =F135+F136+F138 -> 369713 | G146: =G135+G136+G138 -> 456705.2225 | H146: 514238.0748 | I146: 580342.5652 | J146: 656302.6908 | K146: 743594.9955 | L146: 843917.4512
C147: Other Liabilities and Capital | F147: =F141+F143 -> 469128 | G147: 551057.561 | H147: 633716.1951 | I147: 728773.6244 | J147: 838089.668 | K147: 963803.1183 | L147: 1108373.586
C149: Balance Sheet Test | F149: =F144=F139 -> TRUE | G149: =ROUND(G139-G144,3)=0 -> TRUE | H149: =ROUND(H139-H144,3)=0 -> TRUE | I149: TRUE | J149: TRUE | K149: TRUE | L149: TRUE
C151: Target Capital Adequacy | G151: =Target_Cap_Adequacy -> 0.18 | H151: 0.18 | I151: 0.18 | J151: 0.18 | K151: 0.18 | L151: 0.18
C152: Target Equity | G152: =G151*G139 -> 99190.36098 | H152: =H151*H139 -> 114068.9151 | I152: 131179.2524 | J152: 150856.1402 | K152: 173484.5613 | L152: 199507.2455
C153: Less: Opening Equity | G153: =G89 -> 76200 | H153: 99190.36098 | I153: 114068.9151 | J153: 131179.2524 | K153: 150856.1402 | L153: 173484.5613
C154: Less: Net Income | G154: =G113 -> 13746.73463 | H154: 20745.23871 | I154: 24627.16983 | J154: 29095.53211 | K154: 34238.41446 | L154: 40157.12286
C155: Add: Dividends | G155: =G127 -> 3436.683657 | H155: 5186.309678 | I155: 6156.792458 | J155: 7273.883027 | K155: 8559.603614 | L155: 10039.28072
C156: New Equity Required | G156: =G152-G153-G154+G155 -> 12680.31001 | H156: =H152-H153-H154+H155 -> -680.3748863 | I156: -1360.040105 | J156: -2144.761222 | K156: -3050.389806 | L156: -4095.157955
C158: Contingent Liabilities | G158: =G65 -> 0 | H158: 0 | I158: 0 | J158: 0 | K158: 0 | L158: 0
C159: Capital Adequacy | G159: =G143/G139 -> 0.18 | H159: =H143/H139 -> 0.18 | I159: 0.18 | J159: 0.18 | K159: 0.18 | L159: 0.18
G161: 1 | H161: =G161+1 -> 2 | I161: =H161+1 -> 3 | J161: 4 | K161: 5 | L161: 6
C162: ROE | G162: =G113/AVERAGE(F143:G143) -> 0.1567558736 | H162: 0.1945541511 | I162: 0.2008346899 | J162: 0.2063253965 | K162: 0.211126228 | L162: 0.2153244234
C164: Equity Cash Flows
C165: Dividend | G165: =G127 -> 3436.683657 | H165: 5186.309678 | I165: 6156.792458 | J165: 7273.883027 | K165: 8559.603614 | L165: 10039.28072
C166: Less: New Issue of Shares | G166: =G126 -> 12680.31001 | H166: -680.3748863 | I166: -1360.040105 | J166: -2144.761222 | K166: -3050.389806 | L166: -4095.157955
C167: Net Equity Cash Flow | G167: =G165-G166 -> -9243.626348 | H167: 5866.684564 | I167: 7516.832563 | J167: 9418.644249 | K167: 11609.99342 | L167: 14134.43867
C169: Equity Value on B/S | L169: =L143 -> 199507.2455
C170: Regression A Parameter | E170: ='Summary and Sensitivity'!C12 -> 0.1157
C171: Regression B Parameter | E171: ='Summary and Sensitivity'!C13 -> 12.196
C172: ROE Applied | E172: =L162 -> 0.2153244234
C174: Market to Book | I174: Market to Book Regression ---> | L174: =E170+E171*E172 -> 2.741796668
C175: Terminal Value | L175: =L169*L174 -> 547008.3009
C177: Total Cash Flow Including Terminal Value | G177: =G167+G175 -> -9243.626348 | H177: 5866.684564 | I177: 7516.832563 | J177: 9418.644249 | K177: 11609.99342 | L177: 561142.7396
C179: Equity Cost of Capital | F179: 0.1
C181: NPV | F181: =NPV(F179,G177:L177) -> 332485.1113 | I181: 8
C182: Number of Shares | F182: =D17 -> 1000
C183: Value per Share | F183: =F181/F182 -> 332.4851113
C186: P/E Ratio | E186: ='Summary and Sensitivity'!C17 -> 13.14
C188: Terminal Value | L188: =E186*L113 -> 527664.5944
C189: Total Cash Flow | G189: =G167+G188 -> -9243.626348 | H189: =H167+H188 -> 5866.684564 | I189: 7516.832563 | J189: 9418.644249 | K189: 11609.99342 | L189: 541799.0331
C191: NPV of Cash Flow | F191: =F179 -> 0.1
F192: =NPV(F191,G189:L189) -> 321566.0933
F193: =F182 -> 1000
C194: Value per Share - P/E Ratio | F194: =F192/F193 -> 321.5660933

Sheet Opening Balance
A4: Historic Balance Sheet
B5: Opening Balance Sheet
C6: Cash | D6: 210121
C7: Loans | D7: 143872 | I7: TRUE
A8: ? | C8: Investement Securities | D8: =92532+39136 -> 131668
C9: Fixed Assets | D9: 15720
C10: Total | D10: =SUM(D6:D9) -> 501381
C12: Deposits | D12: 392928
C13: Other Borrowing | D13: =12906+19347 -> 32253
C14: Equity | D14: 76200
C15: Total | D15: =SUM(D12:D14) -> 501381
C17: Number of Shares | D17: 1000
C18: Contingent Liabilities | D18: 0
B20: Capital Adequacy
C21: Equity Capital | D21: =D14 -> 76200
C22: Loans | D22: =D7 -> 143872
C23: Fixed Assets | D23: =D9 -> 15720
C24: Contengent Liabilites | D24: =D18 -> 0
C25: Total | D25: =D22+D23+D24 -> 159592
C27: Cap Adequacy | D27: =D21/D25 -> 0.4774675422
A29: Assumptions
B30: Deposit Growth | D30: 0.1
C31: Cash to Deposits | D31: =D6/D12 -> 0.5347570038 | E31: 0.3
C32: Loans to Deposits | D32: 0.6
C33: Fixed Asset Growth | D33: 0.03
C34: Coningent Liabilities to Loans | D34: =D24/D7 -> 0
B36: Interest Rates
C37: Interest Rate - Loans | D37: 0.18
C38: Interest Deposits | D38: 0.05
C39: Interest Rate - Other Investment | D39: 0.1
C40: Interest Rate - Borrowings | D40: 0.11
C42: NII- Non Interest Income
C43: Percent of Contingent Liabilities | D43: 0.015
C44: Loan Loss Percent of Loans | D44: 0.02
C45: Other Expense as Pct of Total Assets | D45: 0.01
B47: Financing and Other Assumptions
C48: Target Cap Adequacy | D48: 0.14
C49: Dividend Payout | D49: 0.25
C50: Tax Rate | D50: 0.3
A52: Working Analysis | D52: Driver | E52: Parameter | F52: Bal Sheet | G52: Projection | H52: Projection | I52: Projection | J52: Projection | K52: Projection | L52: Projection
B53: Asset Balances
C54: Deposit Balance | D54: Deposit Growth --------> | E54: =Deposit_Growth -> 0.15 | F54: =D12 -> 392928 | G54: =F54*(1+Deposit_Growth) -> 451867.2 | H54: 519647.28 | I54: 597594.372 | J54: 687233.5278 | K54: 790318.557 | L54: 908866.3405
C55: Increase in Deposit | D55: Change | G55: =G54-F54 -> 58939.2 | H55: 67780.08 | I55: 77947.092 | J55: 89639.1558 | K55: 103085.0292 | L55: 118547.7835
C57: Cash | D57: Cash/Deposits ---------> | E57: =E31 -> 0.3 | F57: =F54*Cash_to_Deposits -> 210121 | G57: =G54*$E$31 -> 135560.16 | H57: 155894.184 | I57: 179278.3116 | J57: 206170.0583 | K57: 237095.5671 | L57: 272659.9022
C58: Increase in Cash (WC) | D58: Change | G58: =G57-F57 -> -74560.84 | H58: 20334.024 | I58: 23384.1276 | J58: 26891.74674 | K58: 30925.50875 | L58: 35564.33506
C60: Loans | D60: Loans to Deposits -----> | E60: =Loans_to_Deposits -> 0.69 | F60: =D22 -> 143872 | G60: =G54*Loans_to_Deposits -> 311788.368 | H60: 358556.6232 | I60: 412340.1167 | J60: 474191.1342 | K60: 545319.8043 | L60: 627117.775
C61: Increase in Loans | D61: Change | G61: =G60-F60 -> 167916.368 | H61: 46768.2552 | I61: 53783.49348 | J61: 61851.0175 | K61: 71128.67013 | L61: 81797.97065
C63: Fixed Assets | D63: Fixed Asset Growth ---> | E63: =Fixed_Asset -> 0.03 | F63: =D9 -> 15720 | G63: =F63*(1+Fixed_Asset) -> 16191.6 | H63: 16677.348 | I63: 17177.66844 | J63: 17692.99849 | K63: 18223.78845 | L63: 18770.5021
C64: Increase in Fixed Assets | D64: Change | G64: =G63-F63 -> 471.6 | H64: 485.748 | I64: 500.32044 | J64: 515.3300532 | K64: 530.7899548 | L64: 546.7136534
C65: Contingent Liabilities (Capital Adequacy) | D65: CL to Loans -----------> | E65: =CL_to_Loans -> 0 | F65: =F60*CL_to_Loans -> 0 | G65: 0 | H65: 0 | I65: 0 | J65: 0 | K65: 0 | L65: 0
B67: Income and Expenses
C68: Loan Income | D68: Int Rate Loans --------> | E68: =Interest_Rate___Loans -> 0.14 | G68: =AVERAGE(G60,F60)*Interest_Rate___Loans -> 31896.22576 | H68: 46924.14938 | I68: 53962.77179 | J68: 62057.18756 | K68: 71365.76569 | L68: 82070.63055
C69: Deposit Cost | D69: Int Rate Deposits -----> | E69: =Interest_Deposits -> 0.03 | G69: =AVERAGE(G54,F54)*Interest_Deposits -> 12671.928 | H69: 14572.7172 | I69: 16758.62478 | J69: 19272.4185 | K69: 22163.28127 | L69: 25487.77346
C70: Non Interest Income | D70: NII Rate ----------------> | E70: =Percent_of_CL -> 0.015 | G70: =AVERAGE(G65,F65)*Percent_of_CL -> 0 | H70: 0 | I70: 0 | J70: 0 | K70: 0 | L70: 0
C71: Loan Losses | D71: Loan Losses ----------> | E71: =Loan_Loss_Percent_of_Loans -> 0.03 | G71: =AVERAGE(G60,F60)*Loan_Loss_Percent_of_Loans -> 6834.90552 | H71: 10055.17487 | I71: 11563.4511 | J71: 13297.96876 | K71: 15292.66408 | L71: 17586.56369
C72: Other Expense | D72: Other Pct --------------> | E72: =Other_Expense_as_Pct_of_Total_Assets -> 0.01 | G72: =AVERAGE(G60,F60)*Other_Expense_as_Pct_of_Total_Assets -> 2278.30184 | H72: 3351.724956 | I72: 3854.483699 | J72: 4432.656254 | K72: 5097.554692 | L72: 5862.187896
A74: Other Investments Less Cash which is the Cash Flow Plug
C75: Opening Balance | G75: =F77 -> 99415 | H75: 94352.3385 | I75: 119478.1203 | J75: 148431.0592 | K75: 181786.9773 | L75: 220208.1227
C76: Add: Cash Flow from Cash Flow Statement Below | D76: Last line in CF | G76: =G131 -> -5062.661504 | H76: =H131 -> 25125.78181 | I76: 28952.93885 | J76: 33355.91813 | K76: 38421.14545 | L76: 44248.01206
C77: Closing Balance | F77: =F137-F142 -> 99415 | G77: =G75+G76 -> 94352.3385 | H77: =H75+H76 -> 119478.1203 | I77: 148431.0592 | J77: 181786.9773 | K77: 220208.1227 | L77: 264456.1348
C79: Temporary Securities | D79: Use MAX(Bal;0) | F79: =F137 -> 131668 | G79: =MAX(G77,0) -> 94352.3385 | H79: 119478.1203 | I79: 148431.0592 | J79: 181786.9773 | K79: 220208.1227 | L79: 264456.1348
C80: Average Level of Temporary Securities for Interest Income | G80: =F79 -> 131668 | H80: =G79 -> 94352.3385 | I80: 119478.1203 | J80: 148431.0592 | K80: 181786.9773 | L80: 220208.1227
C81: Interest Income Rate on Other Investments | G81: =Interest_Rate___Other_Investment -> 0.1 | H81: 0.1 | I81: 0.1 | J81: 0.1 | K81: 0.1 | L81: 0.1
C82: Int Income on Other Investmetns | G82: =AVERAGE(G79,F79)*Interest_Rate___Other_Investment -> 11301.01692 | H82: 10691.52294 | I82: 13395.45897 | J82: 16510.90182 | K82: 20099.755 | L82: 24233.21288
C84: Other Borrowings | F84: =F142 -> 32253 | G84: =MAX(-G77,0) -> 0 | H84: 0 | I84: 0 | J84: 0 | K84: 0 | L84: 0
C85: Interest Expense Rate | G85: =Interest_Rate___Borrowings -> 0.11 | H85: 0.11 | I85: 0.11 | J85: 0.11 | K85: 0.11 | L85: 0.11
C86: Int Expense on Other Borrowings | G86: =F84*Interest_Rate___Borrowings -> 3547.83 | H86: 0 | I86: 0 | J86: 0 | K86: 0 | L86: 0
B88: Equity Balance
C89: Opening Balance | G89: =F93 -> 76200 | H89: 99190.36098 | I89: 114068.9151 | J89: 131179.2524 | K89: 150856.1402 | L89: 173484.5613
C90: Add: Net Income | G90: =G113 -> 12504.99413 | H90: 20745.23871 | I90: 24627.16983 | J90: 29095.53211 | K90: 34238.41446 | L90: 40157.12286
C91: Less: Dividends | G91: =G127 -> 3126.248532 | H91: 5186.309678 | I91: 6156.792458 | J91: 7273.883027 | K91: 8559.603614 | L91: 10039.28072
C92: Add: New Issues | G92: =G126 -> 13611.61538 | H92: -680.3748863 | I92: -1360.040105 | J92: -2144.761222 | K92: -3050.389806 | L92: -4095.157955
C93: Closing Balance | F93: =D14 -> 76200 | G93: =G89+G90-G91+G92 -> 99190.36098 | H93: 114068.9151 | I93: 131179.2524 | J93: 150856.1402 | K93: 173484.5613 | L93: 199507.2455
A95: Net Loan Balance
B96: Opening Balance | G96: =F99 -> 143872 | H96: =G99 -> 304953.4625 | I96: 341666.5428 | J96: 383886.5852 | K96: 432439.6339 | L96: 488275.64
B97: Add: New Loans | G97: =G61 -> 167916.368 | H97: 46768.2552 | I97: 53783.49348 | J97: 61851.0175 | K97: 71128.67013 | L97: 81797.97065
B98: Less: Loan Provisions | G98: =G71 -> 6834.90552 | H98: 10055.17487 | I98: 11563.4511 | J98: 13297.96876 | K98: 15292.66408 | L98: 17586.56369
B99: Closing Balance | F99: =F60 -> 143872 | G99: =G96+G97-G98 -> 304953.4625 | H99: =H96+H97-H98 -> 341666.5428 | I99: 383886.5852 | J99: 432439.6339 | K99: 488275.64 | L99: 552487.0469
A101: Income Statement
B102: Interest Income - Loans | G102: =G68 -> 31896.22576 | H102: 46924.14938 | I102: 53962.77179 | J102: 62057.18756 | K102: 71365.76569 | L102: 82070.63055
B103: Interest Payments on Deposits | G103: 12671.928 | H103: 14572.7172 | I103: 16758.62478 | J103: 19272.4185 | K103: 22163.28127 | L103: 25487.77346
C104: Net Interest Margin | G104: =G102-G103 -> 19224.29776 | H104: =H102-H103 -> 32351.43218 | I104: 37204.14701 | J104: 42784.76906 | K104: 49202.48442 | L104: 56582.85709
B105: Plus: Fee Income | G105: =G70 -> 0 | H105: 0 | I105: 0 | J105: 0 | K105: 0 | L105: 0
B106: Less: Loan Loss Provisions | G106: 6834.90552 | H106: 10055.17487 | I106: 11563.4511 | J106: 13297.96876 | K106: 15292.66408 | L106: 17586.56369
B107: Less: Operating Expenses | G107: 2278.30184 | H107: 3351.724956 | I107: 3854.483699 | J107: 4432.656254 | K107: 5097.554692 | L107: 5862.187896
C108: Net | G108: =G104+G105-G106-G107 -> 10111.0904 | H108: =H104+H105-H106-H107 -> 18944.53236 | I108: 21786.21221 | J108: 25054.14405 | K108: 28812.26565 | L108: 33134.1055
B109: Interest Income - Investment Securities | G109: =G82 -> 11301.01692 | H109: 10691.52294 | I109: 13395.45897 | J109: 16510.90182 | K109: 20099.755 | L109: 24233.21288
B110: Interest Payments on Other Borrowings | G110: =G86 -> 3547.83 | H110: =H86 -> 0 | I110: 0 | J110: 0 | K110: 0 | L110: 0
C111: EBT | G111: =G108+G109-G110 -> 17864.27732 | H111: =H108+H109-H110 -> 29636.0553 | I111: 35181.67119 | J111: 41565.04587 | K111: 48912.02065 | L111: 57367.31838
B112: Taxes | E112: =Tax_Rate -> 0.3 | G112: =G111*$E$112 -> 5359.283197 | H112: =H111*$E$112 -> 8890.81659 | I112: 10554.50136 | J112: 12469.51376 | K112: 14673.6062 | L112: 17210.19551
C113: Earnings | G113: =G111-G112 -> 12504.99413 | H113: 20745.23871 | I113: 24627.16983 | J113: 29095.53211 | K113: 34238.41446 | L113: 40157.12286
C115: Net Earnings Before Other Interest | G115: =G108 -> 10111.0904 | H115: =H108 -> 18944.53236 | I115: 21786.21221 | J115: 25054.14405 | K115: 28812.26565 | L115: 33134.1055 | M115: 0 | N115: 0 | O115: 0 | P115: 0 | Q115: 0 | R115: 0 | S115: 0 | T115: 0 | U115: 0 | V115: 0 | W115: 0 | X115: 0 | Y115: 0 | Z115: 0 | AA115: 0 | AB115: 0 | AC115: 0 | AD115: 0 | AE115: 0 | AF115: 0 | AG115: 0 | AH115: 0 | AI115: 0 | AJ115: 0 | AK115: 0 | AL115: 0 | AM115: 0 | AN115: 0 | AO115: 0 | AP115: 0 | AQ115: 0 | AR115: 0 | AS115: 0 | AT115: 0 | AU115: 0 | AV115: 0 | AW115: 0 | AX115: 0 | AY115: 0 | AZ115: 0 | BA115: 0 | BB115: 0 | BC115: 0 | BD115: 0 | BE115: 0 | BF115: 0 | BG115: 0 | BH115: 0 | BI115: 0 | BJ115: 0 | BK115: 0 | BL115: 0 | BM115: 0 | BN115: 0 | BO115: 0 | BP115: 0 | BQ115: 0 | BR115: 0 | BS115: 0 | BT115: =BT108 -> 0 | BU115: 0 | BV115: 0 | BW115: 0 | BX115: 0 | BY115: 0 | BZ115: 0 | CA115: 0 | CB115: 0 | CC115: 0 | CD115: 0 | CE115: 0 | CF115: 0 | CG115: 0 | CH115: 0 | CI115: 0 | CJ115: 0 | CK115: 0 | CL115: 0 | CM115: 0 | CN115: 0 | CO115: 0 | CP115: 0 | CQ115: 0 | CR115: 0 | CS115: 0 | CT115: 0 | CU115: 0 | CV115: 0 | CW115: 0 | CX115: 0 | CY115: 0 | CZ115: 0 | DA115: 0 | DB115: 0 | DC115: 0 | DD115: 0 | DE115: 0 | DF115: 0 | DG115: 0 | DH115: 0 | DI115: 0 | DJ115: 0 | DK115: 0 | DL115: 0 | DM115: 0 | DN115: 0 | DO115: 0 | DP115: 0 | DQ115: 0 | DR115: 0 | DS115: 0 | DT115: 0 | DU115: 0 | DV115: 0 | DW115: 0 | DX115: 0 | DY115: 0 | DZ115: 0 | EA115: 0 | EB115: 0 | EC115: 0 | ED115: 0 | EE115: 0 | EF115: =EF108 -> 0 | EG115: 0 | EH115: 0 | EI115: 0 | EJ115: 0 | EK115: 0 | EL115: 0 | EM115: 0 | EN115: 0 | EO115: 0 | EP115: 0 | EQ115: 0 | ER115: 0 | ES115: 0 | ET115: 0 | EU115: 0 | EV115: 0 | EW115: 0 | EX115: 0 | EY115: 0 | EZ115: 0 | FA115: 0 | FB115: 0 | FC115: 0 | FD115: 0 | FE115: 0 | FF115: 0 | FG115: 0 | FH115: 0 | FI115: 0 | FJ115: 0 | FK115: 0 | FL115: 0 | FM115: 0 | FN115: 0 | FO115: 0 | FP115: 0 | FQ115: 0 | FR115: 0 | FS115: 0 | FT115: 0 | FU115: 0 | FV115: 0 | FW115: 0 | FX115: 0 | FY115: 0 | FZ115: 0 | GA115: 0 | GB115: 0 | GC115: 0 | GD115: 0 | GE115: 0 | GF115: 0 | GG115: 0 | GH115: 0 | GI115: 0 | GJ115: 0 | GK115: 0 | GL115: 0 | GM115: 0 | GN115: 0 | GO115: 0 | GP115: 0 | GQ115: 0 | GR115: =GR108 -> 0 | GS115: 0 | GT115: 0 | GU115: 0 | GV115: 0 | GW115: 0 | GX115: 0 | GY115: 0 | GZ115: 0 | HA115: 0 | HB115: 0 | HC115: 0 | HD115: 0 | HE115: 0 | HF115: 0 | HG115: 0 | HH115: 0 | HI115: 0 | HJ115: 0 | HK115: 0 | HL115: 0 | HM115: 0 | HN115: 0 | HO115: 0 | HP115: 0 | HQ115: 0 | HR115: 0 | HS115: 0 | HT115: 0 | HU115: 0 | HV115: 0 | HW115: 0 | HX115: 0 | HY115: 0 | HZ115: 0 | IA115: 0 | IB115: 0 | IC115: 0 | ID115: 0 | IE115: 0 | IF115: 0 | IG115: 0 | IH115: 0 | II115: 0 | IJ115: 0 | IK115: 0 | IL115: 0 | IM115: 0 | IN115: 0 | IO115: 0 | IP115: 0 | IQ115: 0 | IR115: 0 | IS115: 0 | IT115: 0 | IU115: 0 | IV115: 0
A117: Cash Flow Statement
B118: Earnings | G118: =G113 -> 12504.99413 | H118: 20745.23871 | I118: 24627.16983 | J118: 29095.53211 | K118: 34238.41446 | L118: 40157.12286
B119: Add: Loan Loss Provisions | G119: =G106 -> 6834.90552 | H119: =H106 -> 10055.17487 | I119: 11563.4511 | J119: 13297.96876 | K119: 15292.66408 | L119: 17586.56369
B120: Less: WC Changes | G120: =G58 -> -74560.84 | H120: 20334.024 | I120: 23384.1276 | J120: 26891.74674 | K120: 30925.50875 | L120: 35564.33506
C121: Cash from Operations | G121: =G118-G120+G119 -> 93900.73965 | H121: =H118-H120+H119 -> 10466.38958 | I121: 12806.49333 | J121: 15501.75413 | K121: 18605.56978 | L121: 22179.35149
B122: Less: Increases in Loans | G122: =G61 -> 167916.368 | H122: 46768.2552 | I122: 53783.49348 | J122: 61851.0175 | K122: 71128.67013 | L122: 81797.97065
B123: Less: Increases in Plant | G123: =G64 -> 471.6 | H123: 485.748 | I123: 500.32044 | J123: 515.3300532 | K123: 530.7899548 | L123: 546.7136534
C124: Cash before Financing | G124: =G121-G122-G123 -> -74487.22835 | H124: -36787.61362 | I124: -41477.32059 | J124: -46864.59342 | K124: -53053.8903 | L124: -60165.33281
B125: Add: Inceases in Deposits | G125: =G55 -> 58939.2 | H125: 67780.08 | I125: 77947.092 | J125: 89639.1558 | K125: 103085.0292 | L125: 118547.7835
B126: Add: New Equity Issues | G126: =G156 -> 13611.61538 | H126: =H156 -> -680.3748863 | I126: -1360.040105 | J126: -2144.761222 | K126: -3050.389806 | L126: -4095.157955
B127: Less: Dividends | E127: =Dividend_Payout -> 0.25 | G127: =MAX(G118*Dividend_Payout,0) -> 3126.248532 | H127: 5186.309678 | I127: 6156.792458 | J127: 7273.883027 | K127: 8559.603614 | L127: 10039.28072
C128: Net Cash Flow | G128: =G124+G125+G126-G127 -> -5062.661504 | H128: =H124+H125+H126-H127 -> 25125.78181 | I128: =I124+I125+I126-I127 -> 28952.93885 | J128: 33355.91813 | K128: 38421.14545 | L128: 44248.01206
C130: Other Cash Flow Inreases | G130: =G119-G120-G122-G123+G125 -> -28053.02248 | H130: =H119-H120-H122-H123+H125 -> 10247.22767 | I130: 11842.60158 | J130: 13679.03027 | K130: 15792.72441 | L130: 18225.32787
C131: Cash Flow from Function | G131: =cash_flow(G108,$E$112,G130,$E$127,G146,G147,G151,F77,F79,F84,G81,Interest_Rate___Borrowings,G89) -> -5062.661504 | H131: 25125.78181 | I131: 28952.93885 | J131: 33355.91813 | K131: 38421.14545 | L131: 44248.01206
C132: Difference from Circular Function | G132: =G131-G128 -> -2.910383046e-11 | H132: =H131-H128 -> -3.274180926e-11 | I132: -2.910383046e-11 | J132: -7.275957614e-11 | K132: -8.003553376e-11 | L132: 0
A134: Balance Sheet
C135: Cash | F135: =D6 -> 210121 | G135: =G57 -> 135560.16 | H135: 155894.184 | I135: 179278.3116 | J135: 206170.0583 | K135: 237095.5671 | L135: 272659.9022
C136: Loans | F136: =D7 -> 143872 | G136: =G99 -> 304953.4625 | H136: 341666.5428 | I136: 383886.5852 | J136: 432439.6339 | K136: 488275.64 | L136: 552487.0469
C137: Temporary Secruities | F137: =D8 -> 131668 | G137: =G79 -> 94352.3385 | H137: 119478.1203 | I137: 148431.0592 | J137: 181786.9773 | K137: 220208.1227 | L137: 264456.1348
C138: Fixed Assets | F138: =D9 -> 15720 | G138: =G63 -> 16191.6 | H138: 16677.348 | I138: 17177.66844 | J138: 17692.99849 | K138: 18223.78845 | L138: 18770.5021
C139: Total | F139: =D10 -> 501381 | G139: =SUM(G135:G138) -> 551057.561 | H139: 633716.1951 | I139: 728773.6244 | J139: 838089.668 | K139: 963803.1183 | L139: 1108373.586
C141: Deposits | F141: =D12 -> 392928 | G141: =G54 -> 451867.2 | H141: 519647.28 | I141: 597594.372 | J141: 687233.5278 | K141: 790318.557 | L141: 908866.3405
C142: Other Borrowing | F142: =D13 -> 32253 | G142: =G84 -> 0 | H142: 0 | I142: 0 | J142: 0 | K142: 0 | L142: 0
C143: Equity | F143: =D14 -> 76200 | G143: =G93 -> 99190.36098 | H143: 114068.9151 | I143: 131179.2524 | J143: 150856.1402 | K143: 173484.5613 | L143: 199507.2455
C144: Total | F144: =D15 -> 501381 | G144: =SUM(G141:G143) -> 551057.561 | H144: 633716.1951 | I144: 728773.6244 | J144: 838089.668 | K144: 963803.1183 | L144: 1108373.586
C146: Other Assets | F146: =F135+F136+F138 -> 369713 | G146: =G135+G136+G138 -> 456705.2225 | H146: 514238.0748 | I146: 580342.5652 | J146: 656302.6908 | K146: 743594.9955 | L146: 843917.4512
C147: Other Liabilities and Capital | F147: =F141+F143 -> 469128 | G147: 551057.561 | H147: 633716.1951 | I147: 728773.6244 | J147: 838089.668 | K147: 963803.1183 | L147: 1108373.586
C149: Balance Sheet Test | F149: =F144=F139 -> TRUE | G149: =ROUND(G139-G144,3)=0 -> TRUE | H149: =ROUND(H139-H144,3)=0 -> TRUE | I149: TRUE | J149: TRUE | K149: TRUE | L149: TRUE
C151: Target Capital Adequacy | G151: =Target_Cap_Adequacy -> 0.18 | H151: 0.18 | I151: 0.18 | J151: 0.18 | K151: 0.18 | L151: 0.18
C152: Target Equity | G152: =G151*G139 -> 99190.36098 | H152: =H151*H139 -> 114068.9151 | I152: 131179.2524 | J152: 150856.1402 | K152: 173484.5613 | L152: 199507.2455
C153: Less: Opening Equity | G153: =G89 -> 76200 | H153: 99190.36098 | I153: 114068.9151 | J153: 131179.2524 | K153: 150856.1402 | L153: 173484.5613
C154: Less: Net Income | G154: =G113 -> 12504.99413 | H154: 20745.23871 | I154: 24627.16983 | J154: 29095.53211 | K154: 34238.41446 | L154: 40157.12286
C155: Add: Dividends | G155: =G127 -> 3126.248532 | H155: 5186.309678 | I155: 6156.792458 | J155: 7273.883027 | K155: 8559.603614 | L155: 10039.28072
C156: New Equity Required | G156: =G152-G153-G154+G155 -> 13611.61538 | H156: =H152-H153-H154+H155 -> -680.3748863 | I156: -1360.040105 | J156: -2144.761222 | K156: -3050.389806 | L156: -4095.157955
C158: Contingent Liabilities | G158: =G65 -> 0 | H158: 0 | I158: 0 | J158: 0 | K158: 0 | L158: 0
C159: Capital Adequacy | G159: =G143/G139 -> 0.18 | H159: =H143/H139 -> 0.18 | I159: 0.18 | J159: 0.18 | K159: 0.18 | L159: 0.18
C161: ROE | G161: =G113/AVERAGE(F143:G143) -> 0.1425961388 | H161: 0.1945541511 | I161: 0.2008346899 | J161: 0.2063253965 | K161: 0.211126228 | L161: 0.2153244234
C163: Equity Cash Flows
C164: Dividend | G164: =G127 -> 3126.248532 | H164: 5186.309678 | I164: 6156.792458 | J164: 7273.883027 | K164: 8559.603614 | L164: 10039.28072
C165: Less: New Issue of Shares | G165: =G126 -> 13611.61538 | H165: -680.3748863 | I165: -1360.040105 | J165: -2144.761222 | K165: -3050.389806 | L165: -4095.157955
C166: Net Equity Cash Flow | G166: =G164-G165 -> -10485.36685 | H166: 5866.684564 | I166: 7516.832563 | J166: 9418.644249 | K166: 11609.99342 | L166: 14134.43867
C168: Equity Value on B/S | L168: =L143 -> 199507.2455
C169: Regression A Parameter | E169: 1.008
C170: Regression B Parameter | E170: 7.908
C171: ROE Applied | E171: =L161 -> 0.2153244234
C173: Market to Book | I173: Market to Book Regression ---> | L173: =1.008+7.98*L161 -> 2.726288899
C174: Terminal Value | L174: =L168*L173 -> 543914.3886
C176: Total Cash Flow Including Terminal Value | G176: =G166+G174 -> -10485.36685 | H176: 5866.684564 | I176: 7516.832563 | J176: 9418.644249 | K176: 11609.99342 | L176: 558048.8273
C178: Equity Cost of Capital | F178: 0.2
C180: NPV | F180: =NPV(F178,G176:L176) -> 195783.689 | I180: 8
C181: Number of Shares | F181: =D17 -> 1000
C182: Value per Share | F182: =F180/F181 -> 195.783689

Sheet Circular Reference Function

Sheet Inputs
B3: Balance Sheet
C4: Cash | E4: 2000
C5: Loans | E5: 10000
C6: Other Portfolio | E6: 5000
C7: Other Securities | E7: 5000
C8: Fixed Assets | E8: 2000
C9: Total | E9: =SUM(E4:E8) -> 24000
C11: Deposits | E11: 20000
C12: Other Borrowing | E12: 1000
C13: Equity | E13: 3000
C14: Total | E14: =SUM(E11:E13) -> 24000
C16: Number of Shares | E16: 2000
C18: Contingent Liabilities | E18: 5000
B20: Capital Adequacy
C21: Equity Capital | E21: =E13 -> 3000
C22: Loans | E22: =E5 -> 10000
C23: Fixed Assets | E23: =E8 -> 2000
C24: Contengent Liabilites | E24: =E18 -> 5000
C25: Total | E25: =E22+E23+E24 -> 17000
C27: Cap Adequacy | E27: =E21/E25 -> 0.1764705882
B29: Assumptions
C30: Deposit Growth | E30: 0.2
C31: Cash to Deposits | E31: =E4/E11 -> 0.1
C32: Loans to Deposits | E32: =E5/E11 -> 0.5
C33: Fixed Asset Growth | E33: 0.05
C34: CL to Loans | E34: =E24/E5 -> 0.5
C36: Interest Rate - Loans | E36: 0.12
C37: Interest Deposits | E37: 0.05
C38: Interest Rate - Other Investment | E38: 0.08
C39: Interest Rate - Borrowings | E39: 0.11
C41: NII- Non Interest Income
C42: Percent of Contingent Liabilities | E42: 0.015
C43: Loan Loss Percent of Loans | E43: 0.015
C44: Other Expense as Pct of Total Assets | E44: 0.01
B46: Financial Assumptions
C47: Target Cap Adequacy | E47: 0.15
C48: Dividend Payout | E48: 0.5
C49: Tax Rate | E49: 0.3
A51: Working Sheet
B53: Deposits | E53: =Deposits -> 20000 | F53: =E53*(1+Deposit_Growth) -> 24000 | G53: 28800 | H53: 34560 | I53: 41472 | J53: 49766.4 | K53: 59719.68
B54: Increase in Depostits | F54: =F53-E53 -> 4000 | G54: 4800 | H54: 5760 | I54: 6912 | J54: 8294.4 | K54: 9953.28
B56: Loans to Deposits | E56: =Loans_to_Deposits -> 0.5 | F56: =E56 -> 0.5 | G56: 0.5 | H56: 0.5 | I56: 0.5 | J56: 0.5 | K56: 0.5
B57: Loans | E57: =E5 -> 10000 | F57: =F56*F53 -> 12000 | G57: 14400 | H57: 17280 | I57: 20736 | J57: 24883.2 | K57: 29859.84
B58: Increase in Loans | F58: =F57-E57 -> 2000 | G58: 2400 | H58: 2880 | I58: 3456 | J58: 4147.2 | K58: 4976.64
B60: Other Portfolio | E60: =E6 -> 5000 | F60: =E60 -> 5000 | G60: 5000 | H60: 5000 | I60: 5000 | J60: 5000 | K60: 5000
C61: Rate of Return | F61: 0.2 | G61: 0.2 | H61: 0.2 | I61: 0.2 | J61: 0.2 | K61: 0.2
C62: Income | F62: =F61*F60 -> 1000 | G62: 1000 | H62: 1000 | I62: 1000 | J62: 1000 | K62: 1000
B64: Cash to Deposits | E64: =Cash_to_Deposits -> 0.1 | F64: =E64 -> 0.1 | G64: 0.1 | H64: 0.1 | I64: 0.1 | J64: 0.1 | K64: 0.1
B65: Cash | E65: =Cash -> 2000 | F65: =F53*F64 -> 2400 | G65: 2880 | H65: 3456 | I65: 4147.2 | J65: 4976.64 | K65: 5971.968
F66: =F65-E65 -> 400 | G66: 480 | H66: 576 | I66: 691.2 | J66: 829.44 | K66: 995.328
B67: Interest Income
C68: Rate on Loans | E68: =Interest_Rate___Loans -> 0.12 | F68: =E68 -> 0.12 | G68: 0.12 | H68: 0.12 | I68: 0.12 | J68: 0.12 | K68: 0.12
C69: Income | F69: =F68*AVERAGE(E57:F57) -> 1320 | G69: 1584 | H69: 1900.8 | I69: 2280.96 | J69: 2737.152 | K69: 3284.5824
B71: Interest Expense on Deposits
C72: Rate | F72: =Interest_Deposits -> 0.05 | G72: =F72 -> 0.05 | H72: =G72 -> 0.05 | I72: =H72 -> 0.05 | J72: =I72 -> 0.05 | K72: =J72 -> 0.05
C73: Expense | F73: =F72*AVERAGE(E53:F53) -> 1100 | G73: 1320 | H73: 1584 | I73: 1900.8 | J73: 2280.96 | K73: 2737.152
A75: Income Statement
B77: Yield Spread
C78: Interest Income on Loans | F78: =F69 -> 1320 | G78: 1584 | H78: 1900.8 | I78: 2280.96 | J78: 2737.152 | K78: 3284.5824
C79: Portfolio Returns | F79: =F62 -> 1000 | G79: 1000 | H79: 1000 | I79: 1000 | J79: 1000 | K79: 1000
C80: Interest Income on Other Inv | F80: =F110 -> 0 | G80: 320 | H80: 492.4 | I80: 709.36 | J80: 966.048 | K80: 1270.8128
C81: Total Income | F81: =F78+F79+F80 -> 2320 | G81: 2904 | H81: 3393.2 | I81: 3990.32 | J81: 4703.2 | K81: 5555.3952
C83: Deposit Cost | F83: =F73 -> 1100 | G83: 1320 | H83: 1584 | I83: 1900.8 | J83: 2280.96 | K83: 2737.152
C84: Int Expense on Other Lib | F84: =F111 -> 110 | G84: 0 | H84: 0 | I84: 0 | J84: 0 | K84: 0
F85: =F83+F84 -> 1210 | G85: 1320 | H85: 1584 | I85: 1900.8 | J85: 2280.96 | K85: 2737.152
C87: Spread Income | F87: =F81-F85 -> 1110 | G87: 1584 | H87: 1809.2 | I87: 2089.52 | J87: 2422.24 | K87: 2818.2432
B89: Cash Flow Statement
C90: Income | F90: =F87 -> 1110 | G90: 1584 | H90: 1809.2 | I90: 2089.52 | J90: 2422.24 | K90: 2818.2432
C91: Less: Loan Increases | F91: =F58 -> 2000 | G91: 2400 | H91: 2880 | I91: 3456 | J91: 4147.2 | K91: 4976.64
C92: Less: Op Cash Increases | F92: =F66 -> 400 | G92: 480 | H92: 576 | I92: 691.2 | J92: 829.44 | K92: 995.328
C93: Cash Before Investing | F93: =F90-F91-F92 -> -1290 | G93: -1296 | H93: -1646.8 | I93: -2057.68 | J93: -2554.4 | K93: -3153.7248
C94: Add: Deposit Increases | F94: =F54 -> 4000 | G94: 4800 | H94: 5760 | I94: 6912 | J94: 8294.4 | K94: 9953.28
C95: Add: New Rights Issues
C96: Less: Dividends | F96: =F87*Dividend_Payout -> 555 | G96: 792 | H96: 904.6 | I96: 1044.76 | J96: 1211.12 | K96: 1409.1216
C97: Net Cash Flow | F97: =F93+F94+F95-F96 -> 2155 | G97: 2712 | H97: 3208.6 | I97: 3809.56 | J97: 4528.88 | K97: 5390.4336
B99: Balance of Temporary Securities and Other Loans
C100: Opening Balance | F100: =E102 -> 4000 | G100: 6155 | H100: 8867 | I100: 12075.6 | J100: 15885.16 | K100: 20414.04
C101: Add: Cash Flow | F101: =F97 -> 2155 | G101: 2712 | H101: 3208.6 | I101: 3809.56 | J101: 4528.88 | K101: 5390.4336
C102: Closing | E102: =Other_Investment-Other_Borrowing -> 4000 | F102: =F100+F101 -> 6155 | G102: 8867 | H102: 12075.6 | I102: 15885.16 | J102: 20414.04 | K102: 25804.4736
C104: Other Investments | E104: =Other_Investment -> 5000 | F104: =MAX(F102,0) -> 6155 | G104: 8867 | H104: 12075.6 | I104: 15885.16 | J104: 20414.04 | K104: 25804.4736
C105: Other Liabilities | E105: =Other_Borrowing -> 1000 | F105: =MAX(-F102,0) -> 0 | G105: 0 | H105: 0 | I105: 0 | J105: 0 | K105: 0
C107: Interest Rate on Inv | F107: =Interest_Rate___Other_Investment -> 0.08 | G107: 0.08 | H107: 0.08 | I107: 0.08 | J107: 0.08 | K107: 0.08
C108: Interest Rate on Borrowings | F108: =Interest_Rate___Borrowings -> 0.11 | G108: 0.11 | H108: 0.11 | I108: 0.11 | J108: 0.11 | K108: 0.11
C110: Interest Income on Inv | F110: =F107*E100 -> 0 | G110: =G107*F100 -> 320 | H110: 492.4 | I110: 709.36 | J110: 966.048 | K110: 1270.8128
C111: Interest Exp on Borrowings | F111: =F108*E105 -> 110 | G111: =G108*F105 -> 0 | H111: 0 | I111: 0 | J111: 0 | K111: 0
B113: Equity Balance
C114: Opening Equity | F114: =E118 -> 3000 | G114: 3555 | H114: 4347 | I114: 5251.6 | J114: 6296.36 | K114: 7507.48
C115: Add: Net Income | F115: =F90 -> 1110 | G115: 1584 | H115: 1809.2 | I115: 2089.52 | J115: 2422.24 | K115: 2818.2432
C116: Less: Dividends | F116: =F96 -> 555 | G116: 792 | H116: 904.6 | I116: 1044.76 | J116: 1211.12 | K116: 1409.1216
C117: Add: New Rights Issue | F117: =F95 -> 0 | G117: 0 | H117: 0 | I117: 0 | J117: 0 | K117: 0
C118: Closing Balance | E118: =Equity -> 3000 | F118: =F114+F115-F116+F117 -> 3555 | G118: 4347 | H118: 5251.6 | I118: 6296.36 | J118: 7507.48 | K118: 8916.6016
B121: Balance Sheet
C122: Cash | E122: 2000 | F122: =F65 -> 2400 | G122: 2880 | H122: 3456 | I122: 4147.2 | J122: 4976.64 | K122: 5971.968
C123: Loans | E123: 10000 | F123: =F57 -> 12000 | G123: 14400 | H123: 17280 | I123: 20736 | J123: 24883.2 | K123: 29859.84
C124: Other Portfolio | E124: 5000 | F124: =F60 -> 5000 | G124: 5000 | H124: 5000 | I124: 5000 | J124: 5000 | K124: 5000
C125: Other Investment | E125: 5000 | F125: =F104 -> 6155 | G125: 8867 | H125: 12075.6 | I125: 15885.16 | J125: 20414.04 | K125: 25804.4736
C126: Fixed Assets | E126: 2000 | F126: =E126 -> 2000 | G126: 2000 | H126: 2000 | I126: 2000 | J126: 2000 | K126: 2000
C127: Total | E127: =SUM(E122:E126) -> 24000 | F127: 27555 | G127: 33147 | H127: 39811.6 | I127: 47768.36 | J127: 57273.88 | K127: 68636.2816
C129: Deposits | E129: 20000 | F129: =F53 -> 24000 | G129: 28800 | H129: 34560 | I129: 41472 | J129: 49766.4 | K129: 59719.68
C130: Other Borrowing | E130: 1000 | F130: =F105 -> 0 | G130: 0 | H130: 0 | I130: 0 | J130: 0 | K130: 0
C131: Equity | E131: 3000 | F131: =F118 -> 3555 | G131: 4347 | H131: 5251.6 | I131: 6296.36 | J131: 7507.48 | K131: 8916.6016
C132: Total | E132: =SUM(E129:E131) -> 24000 | F132: 27555 | G132: 33147 | H132: 39811.6 | I132: 47768.36 | J132: 57273.88 | K132: 68636.2816
C134: Balance Sheet Test | E134: =AND(F134:K134) -> TRUE | F134: =F132=F127 -> TRUE | G134: TRUE | H134: TRUE | I134: TRUE | J134: TRUE | K134: TRUE
B136: Actual Equity to Capital | F136: =F131/F132 -> 0.1290146979 | G136: 0.1311430899 | H136: 0.1319113022 | I136: 0.131810261 | J136: 0.1310803459 | K136: 0.1299109071
B137: Target | F137: =Target_Cap_Adequacy -> 0.15 | G137: 0.15 | H137: 0.15 | I137: 0.15 | J137: 0.15 | K137: 0.15
F138: =ROUND(F136-F137,0)=0 -> TRUE | G138: TRUE | H138: TRUE | I138: TRUE | J138: TRUE | K138: TRUE
B139: Equity Cash Flow
C140: Dividends | F140: =F96 -> 555 | G140: 792 | H140: 904.6 | I140: 1044.76 | J140: 1211.12 | K140: 1409.1216
C141: Less: New Rights issues | F141: =F117 -> 0 | G141: 0 | H141: 0 | I141: 0 | J141: 0 | K141: 0
C142: Net Cash Flow | F142: =F140-F141 -> 555 | G142: 792 | H142: 904.6 | I142: 1044.76 | J142: 1211.12 | K142: 1409.1216
B144: ROE | F144: =F87/F131 -> 0.3122362869 | G144: 0.364389234 | H144: 0.344504532 | I144: 0.3318615835 | J144: 0.3226435502 | K144: 0.3160669643
B146: Terminal Cash Flow
C147: Book Value | K147: =K118 -> 8916.6016
C148: Market to Book Ratio | K148: =13*K144+0.2 -> 4.308870537
C149: Terminal Value | K149: =K147*K148 -> 38420.48192
B151: Total Cash Flow | F151: =F142+F149 -> 555 | G151: 792 | H151: 904.6 | I151: 1044.76 | J151: 1211.12 | K151: 39829.60352
B152: PV of Cash Flow
E154: 0.1 | G154: Rf+B x RM | H154: 0.05 | I154: 1 | J154: 0.05
B155: Valuation | E155: =NPV(E154,F151:K151) -> 25787.09848

Sheet Balancing Part of Model
A1: Balance Sheet
C3: Other Investments | D3: 1000
C4: Other Borrowings | D4: 10000
C6: Interest on Investments | D6: 0.03
C7: Interest on Other Borrowings | D7: 0.05
B9: Bucket of Cash less Short Term
C10: Opeining Balance | E10: =D12 -> -9000 | F10: =E12 -> -8435.897436 | G10: =F12 -> -7842.866535 | H10: =G12 -> -7732.244306 | I10: =H12 -> -1974.923501
C11: Add: Cash Flow | D11: =F21--> | E11: =E30 -> 564.1025641 | F11: =F30 -> 593.0309007 | G11: =G30 -> 110.622229 | H11: =H30 -> 5757.320805 | I11: =I30 -> 11974.9235
C12: Closing Balance | D12: =D3-D4 -> -9000 | E12: =E10+E11 -> -8435.897436 | F12: =F10+F11 -> -7842.866535 | G12: =G10+G11 -> -7732.244306 | H12: =H10+H11 -> -1974.923501 | I12: =I10+I11 -> 10000
C14: Other Borrowings | D14: =D4 -> 10000 | E14: =MAX(-E12,0) -> 8435.897436 | F14: =MAX(-F12,0) -> 7842.866535 | G14: =MAX(-G12,0) -> 7732.244306 | H14: =MAX(-H12,0) -> 1974.923501 | I14: =MAX(-I12,0) -> 0
C15: Interest on Short-term Debt Computed | E15: =AVERAGE(E14,D14)*$D$7 -> 460.8974359 | F15: =AVERAGE(F14,E14)*$D$7 -> 406.9690993 | G15: =AVERAGE(G14,F14)*$D$7 -> 389.377771 | H15: =AVERAGE(H14,G14)*$D$7 -> 242.6791952 | I15: =AVERAGE(I14,H14)*$D$7 -> 49.37308753
C16: Fixed Interest Expense | E16: 460.8974359 | F16: 406.9690993 | G16: 389.377771 | H16: 242.6791952 | I16: 49.37308753
C17: Difference | D17: =SUM(E17:I17) -> 0 | E17: =E15-E16 -> 0 | F17: =F15-F16 -> 0 | G17: =G15-G16 -> 0 | H17: =H15-H16 -> 0 | I17: =I15-I16 -> 0
C19: Other Investments | D19: =D3 -> 1000 | E19: =MAX(E12,0) -> 0 | F19: =MAX(F12,0) -> 0 | G19: =MAX(G12,0) -> 0 | H19: =MAX(H12,0) -> 0 | I19: =MAX(I12,0) -> 10000
C20: Interest Income on Cash Computed | E20: =AVERAGE(E19,D19)*$D$7 -> 25 | F20: =AVERAGE(F19,E19)*$D$7 -> 0 | G20: =AVERAGE(G19,F19)*$D$7 -> 0 | H20: =AVERAGE(H19,G19)*$D$7 -> 0 | I20: =AVERAGE(I19,H19)*$D$7 -> 250
C21: Fixed Interest Income | E21: 25 | F21: 0 | G21: 0 | H21: 0 | I21: 250
C22: Difference | D22: =SUM(E22:I22) -> 0 | E22: =E20-E21 -> 0 | F22: =F20-F21 -> 0 | G22: 0 | H22: 0 | I22: 0
B24: Profit and Loss and Cash Flw
C25: Income | E25: 1000 | F25: 1000 | G25: 500 | H25: 6000 | I25: 11774.29659
C27: Less: Interest Expense | E27: =E16 -> 460.8974359 | F27: =F16 -> 406.9690993 | G27: =G16 -> 389.377771 | H27: =H16 -> 242.6791952 | I27: =I16 -> 49.37308753
C28: Add: Interest Income | E28: =E21 -> 25 | F28: =F21 -> 0 | G28: =G21 -> 0 | H28: =H21 -> 0 | I28: =I21 -> 250
C30: Net Cash Flow | D30: =E16-E18+E19--> | E30: =E25-E27+E28 -> 564.1025641 | F30: =F25-F27+F28 -> 593.0309007 | G30: =G25-G27+G28 -> 110.622229 | H30: =H25-H27+H28 -> 5757.320805 | I30: =I25-I27+I28 -> 11974.9235
E45: =E20-E21 -> 0 | F45: =F20-F21 -> 0 | G45: =G20-G21 -> 0 | H45: =H20-H21 -> 0 | I45: =I20-I21 -> 0

Sheet Market to Book Regression
J3: 13.102
J4: 0.295
E5: -937.9461785
E6: 400
E7: 400
E8: 400
E9: 400
D11: Rate | E11: 0.1
D13: NPV | E13: =NPV(E11,E5:E9) -> 300
